fUST/lending_fUST_20250312
["ID","MTS","AMOUNT","RATE_DAILY","PERIOD"]
[355917209,1741715433066,-27.20208195,0.00016661,2]
[355917210,1741715433076,-255.06956688,0.00016765,2]
[355917211,1741715433087,-481.28070029,0.0001683,2]
[355917212,1741715433097,-150.26,0.00016849,2]
[355917213,1741715433109,-150.26,0.00016849,2]
[355917214,1741715433119,-150.26,0.00016849,2]
[355917215,1741715433130,-150.26,0.00016849,2]
[355917216,1741715433140,-150.26,0.00016849,2]
[355917217,1741715433150,-151.0,0.00016855,2]
[355917218,1741715433160,-600.0,0.00016855,2]
[355917219,1741715433171,-13010.66737255,0.00016859,2]
[355917220,1741715433510,-151.0,0.00016863,2]
[355917221,1741715433521,-151.0,0.00016863,2]
[355917222,1741715433532,-151.0,0.00016863,2]
[355917223,1741715433543,-151.0,0.00016863,2]
[355917224,1741715433553,-151.0,0.00016863,2]
[355917225,1741715433563,-295.0,0.00016863,2]
[355917226,1741715433573,-636.468294,0.00016864,2]
[355917227,1741715433583,-636.468294,0.00016864,2]
[355917228,1741715433594,-636.468294,0.00016864,2]
[355917229,1741715433606,-636.468294,0.00016864,2]
[355917230,1741715433620,-636.468294,0.00016864,2]
[355917231,1741715433630,-636.468294,0.00016864,2]
[355917232,1741715433641,-636.468294,0.00016864,2]
[355917233,1741715433652,-636.468294,0.00016864,2]
[355917234,1741715433663,-636.468294,0.00016864,2]
[355917235,1741715433673,-636.468294,0.00016864,2]
[355917236,1741715433683,-636.468294,0.00016864,2]
[355917237,1741715433696,-636.468294,0.00016864,2]
[355917238,1741715433707,-636.468294,0.00016864,2]
[355917239,1741715433717,-636.468294,0.00016864,2]
[355917240,1741715433728,-636.468294,0.00016864,2]
[355917241,1741715433739,-636.468294,0.00016864,2]
[355917242,1741715433749,-636.468294,0.00016864,2]
[355917243,1741715433760,-636.468294,0.00016864,2]
[355917244,1741715433771,-151.0,0.00016865,2]
[355917245,1741715433782,-151.0,0.00016865,2]
[355917246,1741715433793,-151.0,0.00016865,2]
[355917247,1741715433802,-151.0,0.00016865,2]
[355917248,1741715433813,-151.0,0.00016865,2]
[355917249,1741715433823,-151.0,0.00016865,2]
[355917250,1741715433833,-151.0,0.00016865,2]
[355917251,1741715433843,-151.0,0.00016865,2]
[355917252,1741715433854,-112.58741424,0.00016865,2]
[355917253,1741715433867,-38.41258576,0.00016865,2]
[355917254,1741715433878,-292.280989,0.00016865,2]
[355917255,1741715433890,-160.134432,0.00016865,2]
[355917256,1741715433901,-151.44523618,0.00016865,2]
[355917307,1741715438181,-3209.41071582,0.00016865,2]
[355917309,1741715438192,-3360.855952,0.00016865,2]
[355917311,1741715438202,-1400.08555415,0.00016865,2]
[355917313,1741715438215,-758.77061219,0.00016865,2]
[355917360,1741715440094,-329.68276536,0.00016865,2]
[355917361,1741715440106,-532.67467896,0.00016865,2]
[355917362,1741715440120,-339.64234134,0.00016865,2]
[355917363,1741715440130,-3360.855952,0.00016865,2]
[355917364,1741715440140,-3360.855952,0.00016865,2]
[355917365,1741715440150,-3360.855952,0.00016865,2]
[355917366,1741715440160,-3360.855952,0.00016865,2]
[355917367,1741715440170,-3360.855952,0.00016865,2]
[355917369,1741715440179,-2213.93828874,0.00016865,2]
[355917381,1741715440616,-423.16002039,0.00016865,2]
[355917405,1741715443250,-723.75764287,0.00016865,2]
[355917406,1741715443260,-3288.68569082,0.00016865,2]
[355917407,1741715444347,24900.0,0.00015869,2]
[355917508,1741715589056,111318.0830602,0.00015866,2]
[355917535,1741715660383,-204.05565352,0.00016772,2]
[355917541,1741715677301,-198.84353703,0.00016863,2]
[355917542,1741715677325,-500.0,0.00016863,2]
[355917543,1741715677353,-500.0,0.00016863,2]
[355917544,1741715677375,-500.0,0.00016863,2]
[355917545,1741715677398,-500.0,0.00016863,2]
[355917546,1741715677421,-500.0,0.00016863,2]
[355917547,1741715677444,-500.0,0.00016863,2]
[355917548,1741715677467,-500.0,0.00016863,2]
[355917549,1741715677489,-500.0,0.00016863,2]
[355917550,1741715677512,-500.0,0.00016863,2]
[355917551,1741715677535,-632.51547472,0.00016863,2]
[355917552,1741715677558,-500.0,0.00016863,2]
[355917553,1741715677582,-500.0,0.00016863,2]
[355917554,1741715677604,-500.0,0.00016863,2]
[355917555,1741715677627,-500.0,0.00016863,2]
[355917556,1741715677650,-500.0,0.00016863,2]
[355917557,1741715677673,-500.0,0.00016863,2]
[355917558,1741715677698,-500.0,0.00016863,2]
[355917559,1741715677720,-500.0,0.00016863,2]
[355917560,1741715677745,-500.0,0.00016863,2]
[355917561,1741715677768,-500.0,0.00016863,2]
[355917562,1741715677791,-500.0,0.00016863,2]
[355917563,1741715677813,-500.0,0.00016863,2]
[355917564,1741715677836,-500.0,0.00016863,2]
[355917565,1741715677858,-500.0,0.00016863,2]
[355917566,1741715677880,-500.0,0.00016863,2]
[355917567,1741715677902,-500.0,0.00016863,2]
[355917568,1741715677924,-500.0,0.00016863,2]
[355917569,1741715677946,-500.0,0.00016863,2]
[355917570,1741715677968,-500.0,0.00016863,2]
[355917571,1741715677991,-500.0,0.00016863,2]
[355917572,1741715678013,-500.0,0.00016863,2]
[355917573,1741715678037,-500.0,0.00016863,2]
[355917574,1741715678060,-500.0,0.00016863,2]
[355917575,1741715678086,-500.0,0.00016863,2]
[355917576,1741715678110,-710.18047313,0.00016864,2]
[355917577,1741715678132,-500.0,0.00016864,2]
[355917578,1741715678154,-72.17026118,0.00016865,2]
[355917579,1741715678178,-3360.855952,0.00016865,2]
[355917580,1741715678200,-3360.855952,0.00016865,2]
[355917581,1741715678221,-3360.855952,0.00016865,2]
[355917582,1741715678242,-3360.855952,0.00016865,2]
[355917583,1741715678264,-3360.855952,0.00016865,2]
[355917584,1741715678285,-3360.855952,0.00016865,2]
[355917585,1741715678307,-3360.855952,0.00016865,2]
[355917586,1741715678328,-3360.855952,0.00016865,2]
[355917587,1741715678354,-3360.855952,0.00016865,2]
[355917588,1741715678374,-3360.855951,0.00016865,2]
[355917589,1741715678395,-151.0,0.00016865,2]
[355917590,1741715678416,-151.0,0.00016865,2]
[355917591,1741715678437,-151.0,0.00016865,2]
[355917592,1741715678459,-151.0,0.00016865,2]
[355917593,1741715678480,-151.0,0.00016865,2]
[355917594,1741715678500,-296.668247,0.00016865,2]
[355917595,1741715678522,-151.0,0.00016865,2]
[355917596,1741715678543,-300.97123,0.00016865,2]
[355917597,1741715678565,-300.97123,0.00016865,2]
[355917598,1741715678589,-300.97123,0.00016865,2]
[355917599,1741715678610,-300.97123,0.00016865,2]
[355917600,1741715678632,-300.97123,0.00016865,2]
[355917601,1741715678653,-300.97123,0.00016865,2]
[355917602,1741715678673,-300.97123,0.00016865,2]
[355917603,1741715678697,-300.97123,0.00016865,2]
[355917604,1741715678717,-300.97123,0.00016865,2]
[355917605,1741715678740,-300.97123,0.00016865,2]
[355917606,1741715678761,-300.97123,0.00016865,2]
[355917607,1741715678785,-300.97123,0.00016865,2]
[355917608,1741715678807,-300.97123,0.00016865,2]
[355917609,1741715678830,-300.97123,0.00016865,2]
[355917610,1741715678857,-300.97123,0.00016865,2]
[355917611,1741715678881,-300.97123,0.00016865,2]
[355917612,1741715678903,-300.97123,0.00016865,2]
[355917613,1741715678926,-300.97123,0.00016865,2]
[355917614,1741715678949,-300.97123,0.00016865,2]
[355917615,1741715678974,-300.971226,0.00016865,2]
[355917616,1741715678998,-482.491728,0.00016865,2]
[355917617,1741715679021,-482.491728,0.00016865,2]
[355917618,1741715679044,-482.491728,0.00016865,2]
[355917619,1741715679066,-482.491728,0.00016865,2]
[355917620,1741715679089,-482.491728,0.00016865,2]
[355917621,1741715679112,-482.491728,0.00016865,2]
[355917622,1741715679133,-482.491728,0.00016865,2]
[355917623,1741715679155,-482.491728,0.00016865,2]
[355917624,1741715679177,-482.491728,0.00016865,2]
[355917625,1741715679200,-482.491728,0.00016865,2]
[355917626,1741715679221,-482.491728,0.00016865,2]
[355917627,1741715679243,-482.491728,0.00016865,2]
[355917628,1741715679552,-482.491728,0.00016865,2]
[355917629,1741715679573,-482.491728,0.00016865,2]
[355917630,1741715679595,-482.491728,0.00016865,2]
[355917631,1741715679615,-482.491728,0.00016865,2]
[355917632,1741715679636,-482.491728,0.00016865,2]
[355917633,1741715679657,-482.491728,0.00016865,2]
[355917634,1741715679678,-202.922946,0.00016865,2]
[355917635,1741715679703,-202.922946,0.00016865,2]
[355917636,1741715679724,-202.922946,0.00016865,2]
[355917637,1741715679744,-202.922946,0.00016865,2]
[355917638,1741715679768,-202.922946,0.00016865,2]
[355917639,1741715679789,-202.922946,0.00016865,2]
[355917640,1741715679810,-202.922946,0.00016865,2]
[355917641,1741715679831,-202.922946,0.00016865,2]
[355917642,1741715679854,-202.922946,0.00016865,2]
[355917643,1741715679875,-202.922946,0.00016865,2]
[355917644,1741715679896,-202.922946,0.00016865,2]
[355917645,1741715679917,-202.922946,0.00016865,2]
[355917646,1741715679937,-202.922946,0.00016865,2]
[355917647,1741715679958,-202.922946,0.00016865,2]
[355917648,1741715679979,-202.922946,0.00016865,2]
[355917649,1741715680000,-202.922946,0.00016865,2]
[355917650,1741715680020,-202.922946,0.00016865,2]
[355917651,1741715680041,-202.922946,0.00016865,2]
[355917652,1741715680063,-202.922946,0.00016865,2]
[355917653,1741715680088,-202.922954,0.00016865,2]
[355917654,1741715680110,-636.468294,0.00016865,2]
[355917655,1741715680132,-636.468303,0.00016865,2]
[355917656,1741715680154,-352.0,0.00016866,2]
[355917657,1741715680176,-352.0,0.00016866,2]
[355917658,1741715680199,-352.0,0.00016866,2]
[355917659,1741715680220,-352.0,0.00016866,2]
[355917660,1741715680241,-352.0,0.00016866,2]
[355917661,1741715680263,-352.0,0.00016866,2]
[355917662,1741715680284,-352.0,0.00016866,2]
[355917663,1741715680306,-352.0,0.00016866,2]
[355917664,1741715680327,-352.0,0.00016866,2]
[355917665,1741715680351,-352.0,0.00016866,2]
[355917666,1741715680373,-352.0,0.00016866,2]
[355917667,1741715680394,-352.0,0.00016866,2]
[355917668,1741715680415,-352.0,0.00016866,2]
[355917669,1741715680436,-500.0,0.00016867,2]
[355917670,1741715680457,-500.0,0.00016867,2]
[355917671,1741715680477,-500.0,0.00016867,2]
[355917672,1741715680497,-500.0,0.00016867,2]
[355917673,1741715680518,-500.0,0.00016867,2]
[355917674,1741715680540,-500.0,0.00016867,2]
[355917675,1741715680562,-500.0,0.00016867,2]
[355917676,1741715680583,-500.0,0.00016867,2]
[355917677,1741715680606,-500.0,0.00016867,2]
[355917678,1741715680628,-500.0,0.00016867,2]
[355917679,1741715680649,-500.0,0.00016867,2]
[355917680,1741715680670,-500.0,0.00016867,2]
[355917681,1741715680691,-500.0,0.00016867,2]
[355917682,1741715680713,-500.0,0.00016867,2]
[355917683,1741715680734,-500.0,0.00016867,2]
[355917684,1741715680755,-500.0,0.00016867,2]
[355917685,1741715680778,-500.0,0.00016867,2]
[355917686,1741715680799,-500.0,0.00016867,2]
[355917687,1741715680819,-500.0,0.00016867,2]
[355917688,1741715680840,-1000.0,0.00016867,2]
[355917689,1741715680860,-1000.0,0.00016867,2]
[355917690,1741715680881,-1000.0,0.00016867,2]
[355917691,1741715680900,-1000.0,0.00016867,2]
[355917692,1741715680920,-1000.0,0.00016867,2]
[355917693,1741715680940,-1000.0,0.00016867,2]
[355917694,1741715680960,-1000.0,0.00016867,2]
[355917695,1741715680981,-1000.0,0.00016867,2]
[355917696,1741715681000,-1000.0,0.00016867,2]
[355917697,1741715681020,-1000.0,0.00016867,2]
[355917698,1741715681041,-1000.0,0.00016867,2]
[355917699,1741715681062,-1000.0,0.00016867,2]
[355917700,1741715681083,-1000.0,0.00016867,2]
[355917701,1741715681105,-1000.0,0.00016867,2]
[355917702,1741715681124,-1000.0,0.00016867,2]
[355917703,1741715681145,-1017.2008666,0.00016867,2]
[355917704,1741715681166,-151.0,0.00016868,2]
[355917705,1741715681187,-294.501401,0.00016868,2]
[355917706,1741715681207,-151.0,0.00016868,2]
[355917707,1741715681227,-500.0,0.00016869,2]
[355917708,1741715681248,-500.0,0.0001687,2]
[355917709,1741715681268,-500.0,0.0001687,2]
[355917710,1741715681288,-151.0,0.0001687,2]
[355917711,1741715681308,-151.0,0.0001687,2]
[355917712,1741715681329,-482.491728,0.0001687,2]
[355917713,1741715681351,-482.491729,0.0001687,2]
[355917714,1741715681371,-151.0,0.0001687,2]
[355917715,1741715681392,-729.471164,0.0001687,2]
[355917716,1741715681413,-729.471164,0.0001687,2]
[355917717,1741715681434,-489.522507,0.0001687,2]
[355917718,1741715681456,-489.522507,0.0001687,2]
[355917719,1741715681477,-151.0,0.0001687,2]
[355917720,1741715681499,-538.099814,0.0001687,2]
[355917721,1741715681520,-538.099814,0.0001687,2]
[355917722,1741715681541,-151.0,0.0001687,2]
[355917723,1741715681563,-22347.0,0.0001687,3]
[355917724,1741715681584,-63125.0,0.0001687,3]
[355917725,1741715681605,-839.3033,0.00016873,2]
[355917726,1741715681627,-839.3033,0.00016873,2]
[355917727,1741715681647,-235.699274,0.00016873,2]
[355917728,1741715681666,-235.699274,0.00016873,2]
[355917729,1741715681686,-152.0,0.0001688,2]
[355917730,1741715681710,-447.50634246,0.00016899,2]
[355917731,1741715681730,-151.0,0.000169,2]
[355917732,1741715681753,-151.0,0.000169,2]
[355917733,1741715681773,-500.0,0.000169,2]
[355917734,1741715681794,-500.0,0.000169,2]
[355917735,1741715681814,-500.0,0.000169,2]
[355917736,1741715681834,-206.13843323,0.000169,2]
[355917737,1741715681856,-500.0,0.000169,2]
[355917738,1741715681875,-500.0,0.000169,2]
[355917739,1741715681895,-500.0,0.000169,2]
[355917740,1741715681915,-500.0,0.000169,2]
[355917741,1741715681934,-151.0,0.000169,2]
[355917742,1741715681954,-248.136151,0.000169,2]
[355917743,1741715681974,-248.136151,0.000169,2]
[355917744,1741715681994,-594.822628,0.000169,2]
[355917745,1741715682015,-159.41205986,0.000169,2]
[355917746,1741715682035,-594.822628,0.000169,2]
[355917747,1741715682055,-170.519125,0.000169,2]
[355917748,1741715682076,-170.519125,0.000169,2]
[355917749,1741715682098,-151.0,0.000169,2]
[355917750,1741715682118,-441.107712,0.000169,2]
[355917751,1741715682138,-441.107712,0.000169,2]
[355917752,1741715682158,-500.0,0.000169,2]
[355917753,1741715682178,-157.51169467,0.000169,2]
[355917754,1741715682198,-500.0,0.000169,2]
[355917755,1741715682218,-500.0,0.000169,2]
[355917756,1741715682237,-500.0,0.000169,2]
[355917757,1741715682257,-160.44400778,0.000169,2]
[355917758,1741715682276,-500.0,0.000169,2]
[355917759,1741715682296,-510.43542667,0.000169,2]
[355917760,1741715682316,-500.0,0.000169,2]
[355917761,1741715682336,-500.0,0.000169,2]
[355917762,1741715682358,-160.40019752,0.000169,2]
[355917763,1741715682378,-160.23977453,0.000169,2]
[355917764,1741715682398,-500.0,0.000169,2]
[355917765,1741715682418,-500.0,0.000169,2]
[355917766,1741715682440,-160.39544876,0.000169,2]
[355917767,1741715682460,-331.99934176,0.000169,2]
[355917768,1741715682480,-500.0,0.000169,2]
[355917770,1741715682500,-500.0,0.000169,2]
[355917771,1741715682522,-160.41464031,0.000169,2]
[355917772,1741715682543,-375.58527348,0.000169,2]
[355917773,1741715682563,-159.39769429,0.000169,2]
[355917774,1741715682583,-225.88867539,0.000169,2]
[355917775,1741715682604,-500.0,0.000169,2]
[355917776,1741715682624,-501.21389799,0.000169,2]
[355917777,1741715682645,-160.0,0.000169,2]
[355917778,1741715682665,-189.80562389,0.000169,2]
[355917779,1741715682686,-500.0,0.000169,2]
[355917780,1741715682707,-500.0,0.000169,2]
[355917781,1741715682727,-500.0,0.000169,2]
[355917782,1741715682747,-500.0,0.000169,2]
[355917783,1741715682768,-500.0,0.000169,2]
[355917784,1741715682789,-500.0,0.000169,2]
[355917785,1741715682809,-500.0,0.000169,2]
[355917786,1741715682829,-500.0,0.000169,2]
[355917787,1741715682849,-500.0,0.000169,2]
[355917788,1741715682869,-160.41641839,0.000169,2]
[355917789,1741715682889,-500.54509315,0.000169,2]
[355917790,1741715682909,-500.0,0.000169,2]
[355917791,1741715682928,-267.29080513,0.000169,2]
[355917792,1741715682949,-404.48852422,0.000169,2]
[355917793,1741715682969,-274.31055979,0.000169,2]
[355917794,1741715682989,-154.1123787,0.000169,2]
[355917796,1741715683008,-160.30906216,0.000169,2]
[355917797,1741715683028,-267.57335394,0.000169,2]
[355917798,1741715683048,-500.0,0.000169,2]
[355917799,1741715683068,-500.0,0.000169,2]
[355917800,1741715683088,-500.0,0.000169,2]
[355917801,1741715683109,-500.0,0.000169,2]
[355917802,1741715683129,-500.0,0.000169,2]
[355917803,1741715683150,-303.22575477,0.000169,2]
[355917804,1741715683169,-169.84893465,0.000169,2]
[355917805,1741715683454,-176.8122789,0.000169,2]
[355917806,1741715683475,-300.0,0.000169,2]
[355917807,1741715683497,-159.436057,0.000169,2]
[355917808,1741715683519,-159.436057,0.000169,2]
[355917809,1741715683540,-500.0,0.000169,2]
[355917810,1741715683562,-500.0,0.000169,2]
[355917811,1741715683583,-500.0,0.000169,2]
[355917812,1741715683604,-151.57515892,0.000169,2]
[355917813,1741715683626,-500.0,0.000169,2]
[355917814,1741715683646,-252.28888901,0.000169,2]
[355917815,1741715683667,-210.8573301,0.000169,2]
[355917816,1741715683688,-155.7663125,0.000169,2]
[355917846,1741715780651,584.809124,0.00015995,2]
[355917851,1741715796056,-254.0,0.0001626,2]
[355917852,1741715796831,-246.0,0.0001626,2]
[355917853,1741715796854,-8.0,0.00016855,2]
[355917858,1741715804411,178.2104659,0.00016006,2]
[355917865,1741715822018,816.39,0.00010959,2]
[355917881,1741715885033,-143.0,0.00016855,2]
[355917882,1741715885056,-157.0,0.00016855,2]
[355917890,1741715913517,-200.0,0.00016855,2]
[355917892,1741715917071,-204.38839161,0.00016855,2]
[355917898,1741715934048,-179.2570724,0.00016763,2]
[355917902,1741715945683,-131.04601855,0.00016763,2]
[355917903,1741715945705,-38.61160839,0.00016855,2]
[355917904,1741715945727,-316.60468802,0.00016863,2]
[355917905,1741715949286,-188.25481743,0.00016863,2]
[355917906,1741715949309,-111.74518257,0.00016867,2]
[355917908,1741715957112,1160.8071169,0.00015901,2]
[355917910,1741715960144,9936.0,0.00016022,2]
[355917915,1741715976742,-350.0,0.00016627,2]
[355917921,1741715995097,-200.0,0.00016627,2]
[355917923,1741715998164,-183.742672,0.00016627,2]
[355917927,1741716003778,-100.62377094,0.00016627,2]
[355917928,1741716003813,-49.37622906,0.00016766,2]
[355917932,1741716022519,-200.0,0.00016766,2]
[355917940,1741716051416,-60.92686188,0.00016766,2]
[355917941,1741716051440,-239.07313812,0.00016769,2]
[355917942,1741716051740,-71.22995282,0.00016769,2]
[355917943,1741716051763,-150.9,0.00016858,2]
[355917945,1741716051785,-77.87004718,0.00016858,2]
[355917949,1741716064603,-73.02995282,0.00016858,2]
[355917950,1741716064628,-95.97004718,0.00016858,2]
[355917968,1741716124559,-54.92995282,0.00016858,2]
[355917969,1741716124583,-95.21959619,0.00016858,2]
[355917979,1741716154026,-55.68040381,0.00016858,2]
[355917980,1741716154052,-150.9,0.00016858,2]
[355917981,1741716154078,-93.41959619,0.00016858,2]
[355917985,1741716166658,-57.48040381,0.00016858,2]
[355917986,1741716166685,-150.9,0.00016858,2]
[355917987,1741716166707,-89.52656652,0.00016859,2]
[355918004,1741716255827,1540.794464,0.0001587,2]
[355918005,1741716268392,10000.0,0.0001587,2]
[355918024,1741716438927,-823.35431334,0.00016765,2]
[355918025,1741716438942,-3353.29137332,0.00016765,2]
[355918026,1741716438956,-151.0,0.00016859,2]
[355918027,1741716438966,-600.0,0.00016859,2]
[355918028,1741716438976,-72.35431334,0.00016864,2]
[355918034,1741716490121,-834.36644294,0.00016619,2]
[355918035,1741716490154,-300.0,0.00016863,2]
[355918036,1741716490185,-427.64568666,0.00016864,2]
[355918037,1741716490217,-500.0,0.00016864,2]
[355918038,1741716490249,-500.0,0.00016864,2]
[355918039,1741716490281,-500.0,0.00016864,2]
[355918040,1741716490312,-500.0,0.00016864,2]
[355918041,1741716490345,-568.23578989,0.00016864,2]
[355918042,1741716490376,-1000.0,0.00016864,2]
[355918043,1741716490397,-834.36644294,0.00016864,2]
[355918044,1741716490409,-165.63355706,0.00016864,2]
[355918045,1741716490418,-134.36644294,0.00016864,2]
[355918046,1741716490439,-427.64568666,0.00016864,2]
[355918047,1741716490462,-437.9878704,0.00016864,2]
[355918048,1741716490472,-62.0121296,0.00016864,2]
[355918049,1741716490484,-500.0,0.00016864,2]
[355918050,1741716490495,-437.9878704,0.00016864,2]
[355918051,1741716490505,-62.0121296,0.00016864,2]
[355918052,1741716490521,-500.0,0.00016864,2]
[355918053,1741716490532,-437.9878704,0.00016864,2]
[355918054,1741716490541,-130.24791949,0.00016864,2]
[355918055,1741716490553,-869.75208051,0.00016864,2]
[355918056,1741716490562,-130.24791949,0.00016864,2]
[355918057,1741716490577,-339.50416102,0.00016864,2]
[355918063,1741716538343,24900.0,0.0001589,2]
[355918078,1741716568129,-800.0,0.00016794,2]
[355918079,1741716568154,-300.0,0.00016857,2]
[355918080,1741716568180,-500.0,0.00016863,2]
[355918081,1741716568209,-500.0,0.00016863,2]
[355918082,1741716568233,-500.0,0.00016863,2]
[355918083,1741716568258,-500.0,0.00016863,2]
[355918084,1741716568281,-500.0,0.00016863,2]
[355918085,1741716568304,-500.0,0.00016863,2]
[355918086,1741716568326,-500.0,0.00016863,2]
[355918087,1741716568374,-500.0,0.00016863,2]
[355918088,1741716568427,-500.0,0.00016863,2]
[355918089,1741716568483,-4.96781356,0.00016863,2]
[355918100,1741716632326,-486.26231496,0.00016784,2]
[355918101,1741716632337,-151.0,0.00016858,2]
[355918102,1741716632347,-495.0169102,0.00016858,2]
[355918103,1741716632372,-104.9830898,0.00016858,2]
[355918104,1741716632382,-300.0,0.00016862,2]
[355918105,1741716632392,-495.03218644,0.00016863,2]
[355918106,1741716632402,-500.0,0.00016863,2]
[355918107,1741716632412,-191.3472349,0.00016863,2]
[355918108,1741716632422,-500.0,0.00016863,2]
[355918109,1741716632432,-500.0,0.00016863,2]
[355918110,1741716632441,-500.0,0.00016863,2]
[355918111,1741716632451,-500.0,0.00016863,2]
[355918131,1741716632756,-500.0,0.00016863,2]
[355918132,1741716632767,-500.0,0.00016863,2]
[355918133,1741716632778,-500.0,0.00016863,2]
[355918134,1741716632789,-500.0,0.00016863,2]
[355918135,1741716632801,-500.0,0.00016863,2]
[355918136,1741716632811,-500.0,0.00016863,2]
[355918137,1741716632821,-500.0,0.00016863,2]
[355918138,1741716632831,-500.0,0.00016863,2]
[355918139,1741716632841,-500.0,0.00016863,2]
[355918140,1741716632852,-500.0,0.00016863,2]
[355918141,1741716632862,-500.0,0.00016863,2]
[355918142,1741716632872,-500.0,0.00016863,2]
[355918143,1741716632883,-500.0,0.00016863,2]
[355918144,1741716632893,-500.0,0.00016863,2]
[355918145,1741716632903,-500.0,0.00016863,2]
[355918147,1741716632913,-500.0,0.00016863,2]
[355918149,1741716632923,-500.0,0.00016863,2]
[355918152,1741716632933,-500.0,0.00016863,2]
[355918153,1741716632942,-500.0,0.00016863,2]
[355918156,1741716632952,-500.0,0.00016863,2]
[355918158,1741716632962,-500.0,0.00016863,2]
[355918159,1741716632972,-500.0,0.00016863,2]
[355918162,1741716632983,-500.0,0.00016863,2]
[355918164,1741716632993,-500.0,0.00016863,2]
[355918166,1741716633005,-500.0,0.00016863,2]
[355918168,1741716633023,-500.0,0.00016863,2]
[355918170,1741716633034,-500.0,0.00016863,2]
[355918172,1741716633045,-596.26893883,0.00016863,2]
[355918174,1741716633055,-500.0,0.00016863,2]
[355918176,1741716633066,-500.0,0.00016863,2]
[355918178,1741716633077,-500.0,0.00016863,2]
[355918180,1741716633089,-500.0,0.00016863,2]
[355918182,1741716633101,-500.0,0.00016863,2]
[355918184,1741716633112,-500.0,0.00016863,2]
[355918186,1741716633123,-500.0,0.00016863,2]
[355918188,1741716633134,-500.0,0.00016863,2]
[355918190,1741716633144,-500.0,0.00016863,2]
[355918192,1741716633155,-1049.473263,0.00016863,2]
[355918194,1741716633166,-1049.473263,0.00016863,2]
[355918196,1741716633177,-1049.473263,0.00016863,2]
[355918198,1741716633187,-1049.473263,0.00016863,2]
[355918200,1741716633198,-1049.473263,0.00016863,2]
[355918202,1741716633210,-1049.473263,0.00016863,2]
[355918204,1741716633221,-1049.473263,0.00016863,2]
[355918206,1741716633234,-1049.473263,0.00016863,2]
[355918208,1741716633244,-765.71481932,0.00016863,2]
[355918211,1741716633258,-283.75844368,0.00016863,2]
[355918213,1741716633268,-994.6294149,0.00016863,2]
[355918215,1741716633281,-54.8438481,0.00016863,2]
[355918217,1741716633292,-1049.473263,0.00016863,2]
[355918219,1741716633302,-1049.473263,0.00016863,2]
[355918221,1741716633311,-1049.473263,0.00016863,2]
[355918223,1741716633322,-1049.473263,0.00016863,2]
[355918225,1741716633333,-1049.473263,0.00016863,2]
[355918227,1741716633344,-1049.473263,0.00016863,2]
[355918229,1741716633354,-1049.473263,0.00016863,2]
[355918230,1741716633365,-1049.473263,0.00016863,2]
[355918231,1741716633376,-1049.473263,0.00016863,2]
[355918233,1741716633387,-1049.473263,0.00016863,2]
[355918235,1741716633398,-1049.473263,0.00016863,2]
[355918237,1741716633408,-1049.473263,0.00016863,2]
[355918239,1741716633419,-1049.473263,0.00016863,2]
[355918240,1741716633430,-1049.473263,0.00016863,2]
[355918241,1741716633441,-1049.473263,0.00016863,2]